[Event "*** Titled Tuesday Blitz"]
[Site "Chess.com"]
[Date "2020.05.12"]
[Round "4"]
[White "maurito96"]
[Black "Olga_Girya"]
[Result "0-1"]
[WhiteElo "2206"]
[BlackElo "2424"]
[TimeControl "180+1"]
[EndTime "10:34:27 PDT"]
[Termination "Olga_Girya won by resignation"]

1. c4 {[%clk 0:03:00.8]} 1... c6 {[%clk 0:02:53.1]} 2. Nf3 {[%clk 0:03:00]} 2...
d5 {[%clk 0:02:52.3]} 3. e3 {[%clk 0:03:00.5]} 3... Nf6 {[%clk 0:02:52.1]} 4. b3
{[%clk 0:03:00.7]} 4... Bg4 {[%clk 0:02:50.8]} 5. Bb2 {[%clk 0:03:00.7]} 5... e6
{[%clk 0:02:49.5]} 6. h3 {[%clk 0:03:00.7]} 6... Bh5 {[%clk 0:02:49.6]} 7. g4
{[%clk 0:03:00]} 7... Bg6 {[%clk 0:02:49.3]} 8. d3 {[%clk 0:02:46.9]} 8... Nbd7
{[%clk 0:02:46]} 9. Nbd2 {[%clk 0:02:47.2]} 9... Bd6 {[%clk 0:02:39.1]} 10. Be2
{[%clk 0:02:45.9]} 10... a5 {[%clk 0:02:26.5]} 11. a3 {[%clk 0:02:42]} 11... Qe7
{[%clk 0:02:17.8]} 12. Qc2 {[%clk 0:02:41.7]} 12... e5 {[%clk 0:02:12.8]} 13.
Nh4 {[%clk 0:02:37.7]} 13... Nc5 {[%clk 0:01:57.2]} 14. b4 {[%clk 0:02:29]}
14... axb4 {[%clk 0:01:54.2]} 15. axb4 {[%clk 0:02:29.9]} 15... Rxa1+ {[%clk
0:01:53.1]} 16. Bxa1 {[%clk 0:02:30.8]} 16... Ne6 {[%clk 0:01:51.3]} 17. c5
{[%clk 0:02:28.6]} 17... Bc7 {[%clk 0:01:49.6]} 18. Nf5 {[%clk 0:02:29]} 18...
Qd7 {[%clk 0:01:36]} 19. Nxg7+ {[%clk 0:02:26.2]} 19... Nxg7 {[%clk 0:01:35.5]}
0-1

[Event "*** Titled Tuesday Blitz"]
[Site "Chess.com"]
[Date "2020.05.12"]
[Round "4"]
[White "IMAghasiyevKamal"]
[Black "Off-War"]
[Result "1/2-1/2"]
[WhiteElo "2515"]
[BlackElo "2740"]
[TimeControl "180+1"]
[EndTime "10:34:33 PDT"]
[Termination "Game drawn by repetition"]

1. d4 {[%clk 0:03:00.9]} 1... d6 {[%clk 0:03:00.9]} 2. c4 {[%clk 0:02:58.2]}
2... g6 {[%clk 0:03:01.3]} 3. Nc3 {[%clk 0:02:57.5]} 3... Bg7 {[%clk 0:03:02.2]}
4. g3 {[%clk 0:02:50.7]} 4... c5 {[%clk 0:02:59.1]} 5. dxc5 {[%clk 0:02:45.7]}
5... Bxc3+ {[%clk 0:02:59.3]} 6. bxc3 {[%clk 0:02:45.3]} 6... dxc5 {[%clk
0:03:00.2]} 7. Qxd8+ {[%clk 0:02:41.5]} 7... Kxd8 {[%clk 0:03:01.1]} 8. Bg2
{[%clk 0:02:40.7]} 8... Ke8 {[%clk 0:02:59.6]} 9. Be3 {[%clk 0:02:37.1]} 9...
Na6 {[%clk 0:02:59]} 10. Rb1 {[%clk 0:02:35.4]} 10... Kd7 {[%clk 0:02:51.3]} 11.
Bxb7 {[%clk 0:02:32.9]} 11... Rb8 {[%clk 0:02:50.9]} 12. Bxc8+ {[%clk
0:02:33.2]} 12... Kxc8 {[%clk 0:02:48.4]} 13. Rxb8+ {[%clk 0:02:31.9]} 13...
Kxb8 {[%clk 0:02:49.1]} 14. Nf3 {[%clk 0:02:30.4]} 14... Nf6 {[%clk 0:02:48.8]}
15. Ne5 {[%clk 0:02:30.6]} 15... Rf8 {[%clk 0:02:45.9]} 16. f3 {[%clk
0:02:19.8]} 16... Kc7 {[%clk 0:02:45.7]} 17. Kf2 {[%clk 0:02:15.1]} 17... Nd7
{[%clk 0:02:45.9]} 18. Nxd7 {[%clk 0:02:10.2]} 18... Kxd7 {[%clk 0:02:46.8]} 19.
Rb1 {[%clk 0:02:10.8]} 19... Kc6 {[%clk 0:02:46.4]} 20. Rb5 {[%clk 0:02:05.6]}
20... Rd8 {[%clk 0:02:46.4]} 21. Ke1 {[%clk 0:02:02.9]} 21... Rd7 {[%clk
0:02:44.2]} 22. Ra5 {[%clk 0:01:46.1]} 22... Kb6 {[%clk 0:02:44.3]} 23. Rb5+
{[%clk 0:01:45.6]} 23... Kc6 {[%clk 0:02:44.4]} 24. Ra5 {[%clk 0:01:31.7]} 24...
Kb6 {[%clk 0:02:44.1]} 25. Rb5+ {[%clk 0:01:31.3]} 25... Kc6 {[%clk 0:02:44]}
1/2-1/2

[Event "*** Titled Tuesday Blitz"]
[Site "Chess.com"]
[Date "2020.05.12"]
[Round "4"]
[White "EugeneRougon"]
[Black "Sanyura"]
[Result "1-0"]
[WhiteElo "2757"]
[BlackElo "2508"]
[TimeControl "180+1"]
[EndTime "10:34:37 PDT"]
[Termination "EugeneRougon won by checkmate"]

1. e4 {[%clk 0:03:00.9]} 1... c5 {[%clk 0:02:58.4]} 2. Nf3 {[%clk 0:03:00.2]}
2... e6 {[%clk 0:02:58.5]} 3. g3 {[%clk 0:02:59.9]} 3... Nc6 {[%clk 0:02:57.3]}
4. Bg2 {[%clk 0:02:56.4]} 4... Nge7 {[%clk 0:02:57.8]} 5. O-O {[%clk 0:02:51.3]}
5... d5 {[%clk 0:02:55.8]} 6. exd5 {[%clk 0:02:50.6]} 6... exd5 {[%clk
0:02:56.7]} 7. d4 {[%clk 0:02:50.6]} 7... cxd4 {[%clk 0:02:51.6]} 8. Nxd4 {[%clk
0:02:51.5]} 8... Be6 {[%clk 0:02:51.2]} 9. Nxe6 {[%clk 0:02:37.3]} 9... fxe6
{[%clk 0:02:52.1]} 10. Re1 {[%clk 0:02:38.2]} 10... Qd7 {[%clk 0:02:48.1]} 11.
Bh3 {[%clk 0:02:37.1]} 11... Qd6 {[%clk 0:02:22.7]} 12. Rxe6 {[%clk 0:02:19]}
12... Qb4 {[%clk 0:02:20.7]} 13. Nc3 {[%clk 0:02:13.6]} 13... d4 {[%clk
0:02:10.3]} 14. Nd5 {[%clk 0:02:10.5]} 14... Qa5 {[%clk 0:02:10.4]} 15. Qh5+
{[%clk 0:01:37.7]} 15... Kd8 {[%clk 0:02:09.1]} 16. Rd6# {[%clk 0:01:30.1]} 1-0

[Event "*** Titled Tuesday Blitz"]
[Site "Chess.com"]
[Date "2020.05.12"]
[Round "4"]
[White "NotFischer"]
[Black "krasavetc"]
[Result "1-0"]
[WhiteElo "2111"]
[BlackElo "2299"]
[TimeControl "180+1"]
[EndTime "10:34:44 PDT"]
[Termination "NotFischer won by resignation"]

1. Nf3 {[%clk 0:03:00.9]} 1... Nf6 {[%clk 0:02:57.9]} 2. g3 {[%clk 0:03:00.4]}
2... d6 {[%clk 0:02:56.8]} 3. d4 {[%clk 0:02:59.1]} 3... Nbd7 {[%clk 0:02:57.7]}
4. Bg2 {[%clk 0:02:58.7]} 4... g6 {[%clk 0:02:58.1]} 5. O-O {[%clk 0:02:58.3]}
5... Bg7 {[%clk 0:02:58.3]} 6. c4 {[%clk 0:02:58.3]} 6... O-O {[%clk 0:02:59.1]}
7. Nc3 {[%clk 0:02:58.2]} 7... Re8 {[%clk 0:02:58.9]} 8. e4 {[%clk 0:02:54.8]}
8... e5 {[%clk 0:02:58.4]} 9. h3 {[%clk 0:02:53.4]} 9... c6 {[%clk 0:02:57.7]}
10. Be3 {[%clk 0:02:51.6]} 10... exd4 {[%clk 0:02:56.3]} 11. Nxd4 {[%clk
0:02:50.8]} 11... Qc7 {[%clk 0:02:54.4]} 12. Qc2 {[%clk 0:02:43]} 12... Nc5
{[%clk 0:02:52.3]} 13. Rad1 {[%clk 0:02:37.5]} 13... Nfxe4 {[%clk 0:02:38]} 14.
Nxe4 {[%clk 0:02:24.4]} 14... Bf5 {[%clk 0:02:36.9]} 15. Nxf5 {[%clk 0:02:20.2]}
15... gxf5 {[%clk 0:02:33.2]} 16. Nxd6 {[%clk 0:02:04.2]} 16... Rxe3 {[%clk
0:02:28.8]} 17. fxe3 {[%clk 0:02:02.2]} 17... Ne4 {[%clk 0:02:29.3]} 18. Nxe4
{[%clk 0:01:57.9]} 18... fxe4 {[%clk 0:02:28.1]} 19. Bxe4 {[%clk 0:01:58.5]}
19... Qxg3+ {[%clk 0:02:28]} 20. Qg2 {[%clk 0:01:55.7]} 20... Qxe3+ {[%clk
0:02:27]} 21. Kh1 {[%clk 0:01:55.8]} 21... Kh8 {[%clk 0:02:26.1]} 22. Rxf7
{[%clk 0:01:42.4]} 22... Rg8 {[%clk 0:02:18.4]} 23. Rxg7 {[%clk 0:01:37]} 23...
Rxg7 {[%clk 0:02:13.2]} 1-0

[Event "*** Titled Tuesday Blitz"]
[Site "Chess.com"]
[Date "2020.05.12"]
[Round "4"]
[White "LikeWater"]
[Black "Munkhzul_Turmunkh"]
[Result "1-0"]
[WhiteElo "2699"]
[BlackElo "2475"]
[TimeControl "180+1"]
[EndTime "10:34:47 PDT"]
[Termination "LikeWater won by resignation"]

1. e4 {[%clk 0:03:00.9]} 1... c5 {[%clk 0:02:59.4]} 2. Nf3 {[%clk 0:03:00.1]}
2... d6 {[%clk 0:02:59.7]} 3. Nc3 {[%clk 0:03:01]} 3... Nf6 {[%clk 0:02:58.8]}
4. e5 {[%clk 0:03:01.6]} 4... dxe5 {[%clk 0:02:59.1]} 5. Nxe5 {[%clk 0:03:02.5]}
5... a6 {[%clk 0:02:57.3]} 6. g3 {[%clk 0:03:02.6]} 6... Nbd7 {[%clk 0:02:55.5]}
7. d4 {[%clk 0:03:02.6]} 7... e6 {[%clk 0:02:43.2]} 8. Be3 {[%clk 0:02:46.1]}
8... cxd4 {[%clk 0:02:33.3]} 9. Bxd4 {[%clk 0:02:47]} 9... Bb4 {[%clk
0:02:27.8]} 10. Bg2 {[%clk 0:02:34.8]} 10... O-O {[%clk 0:02:27]} 11. O-O {[%clk
0:02:32.5]} 11... Qc7 {[%clk 0:02:14.4]} 12. Nxd7 {[%clk 0:02:20.7]} 12... Bxd7
{[%clk 0:02:15.3]} 13. Bxf6 {[%clk 0:02:19.2]} 13... gxf6 {[%clk 0:02:02.6]} 14.
Qg4+ {[%clk 0:02:19.4]} 14... Kh8 {[%clk 0:02:02.5]} 15. Qxb4 {[%clk 0:02:20.1]}
15... Bc6 {[%clk 0:01:59.3]} 16. Bxc6 {[%clk 0:02:16]} 16... Qxc6 {[%clk
0:02:00.2]} 17. Rad1 {[%clk 0:02:16.1]} 17... Rad8 {[%clk 0:01:58.8]} 18. Qf4
{[%clk 0:02:04.9]} 18... e5 {[%clk 0:01:58]} 19. Qg4 {[%clk 0:02:02.1]} 19...
Rg8 {[%clk 0:01:51.5]} 20. Rxd8 {[%clk 0:02:01.2]} 20... Rxd8 {[%clk 0:01:51.2]}
21. Rd1 {[%clk 0:02:01.4]} 21... Rg8 {[%clk 0:01:50.7]} 22. Qf5 {[%clk
0:01:55.7]} 1-0

[Event "*** Titled Tuesday Blitz"]
[Site "Chess.com"]
[Date "2020.05.12"]
[Round "4"]
[White "krstulov_alex"]
[Black "Konavets"]
[Result "0-1"]
[WhiteElo "2549"]
[BlackElo "2942"]
[TimeControl "180+1"]
[EndTime "10:35:01 PDT"]
[Termination "Konavets won by resignation"]

1. d4 {[%clk 0:03:00.9]} 1... Nf6 {[%clk 0:02:59.2]} 2. c4 {[%clk 0:03:00.4]}
2... e6 {[%clk 0:02:59.4]} 3. Nf3 {[%clk 0:03:01]} 3... Bb4+ {[%clk 0:02:59.1]}
4. Bd2 {[%clk 0:03:01.2]} 4... Qe7 {[%clk 0:02:58.8]} 5. g3 {[%clk 0:03:01.5]}
5... Bxd2+ {[%clk 0:02:57.9]} 6. Qxd2 {[%clk 0:03:01.6]} 6... Nc6 {[%clk
0:02:58.6]} 7. Nc3 {[%clk 0:03:00.5]} 7... d6 {[%clk 0:02:58.4]} 8. d5 {[%clk
0:02:59.8]} 8... Nb8 {[%clk 0:02:54]} 9. Bg2 {[%clk 0:02:59.8]} 9... e5 {[%clk
0:02:53.9]} 10. O-O {[%clk 0:02:59.4]} 10... a5 {[%clk 0:02:54.5]} 11. b3 {[%clk
0:02:56.7]} 11... O-O {[%clk 0:02:54.2]} 12. a3 {[%clk 0:02:57.1]} 12... Na6
{[%clk 0:02:54.1]} 13. Rab1 {[%clk 0:02:57.1]} 13... Bf5 {[%clk 0:02:52.8]} 14.
Rb2 {[%clk 0:02:56.9]} 14... Nc5 {[%clk 0:02:53]} 15. b4 {[%clk 0:02:56.3]}
15... axb4 {[%clk 0:02:53.2]} 16. axb4 {[%clk 0:02:57.2]} 16... Na4 {[%clk
0:02:53.7]} 17. Nxa4 {[%clk 0:02:56.1]} 17... Rxa4 {[%clk 0:02:54.6]} 18. Ra2
{[%clk 0:02:55]} 18... Rfa8 {[%clk 0:02:53.8]} 19. Rxa4 {[%clk 0:02:55.1]} 19...
Rxa4 {[%clk 0:02:54.7]} 20. Qb2 {[%clk 0:02:55.7]} 20... Qe8 {[%clk 0:02:52.7]}
21. Ra1 {[%clk 0:02:55.3]} 21... Qa8 {[%clk 0:02:52.8]} 22. Rxa4 {[%clk
0:02:54.7]} 22... Qxa4 {[%clk 0:02:53.7]} 23. Ne1 {[%clk 0:02:50.4]} 23... Qd1
{[%clk 0:02:51.7]} 24. Qc3 {[%clk 0:02:43.4]} 24... Qxe2 {[%clk 0:02:51]} 25.
Bf3 {[%clk 0:02:40.2]} 25... Qa2 {[%clk 0:02:50.6]} 26. Kg2 {[%clk 0:02:37.7]}
26... Ne4 {[%clk 0:02:39.2]} 27. Qc2 {[%clk 0:02:37.6]} 27... Qxc2 {[%clk
0:02:30.3]} 28. Nxc2 {[%clk 0:02:38.5]} 28... Nd2 {[%clk 0:02:30]} 29. Ne3
{[%clk 0:02:38.3]} 29... Bd3 {[%clk 0:02:29.9]} 30. c5 {[%clk 0:02:36.9]} 30...
Nxf3 {[%clk 0:02:20]} 31. Kxf3 {[%clk 0:02:37.1]} 31... f5 {[%clk 0:02:20.7]}
32. g4 {[%clk 0:02:29.1]} 32... Be4+ {[%clk 0:02:19.1]} 33. Ke2 {[%clk
0:02:28.7]} 33... f4 {[%clk 0:02:18.8]} 34. cxd6 {[%clk 0:02:24.6]} 34... cxd6
{[%clk 0:02:17.7]} 35. Nc4 {[%clk 0:02:25.2]} 35... Bxd5 {[%clk 0:02:18.1]} 36.
Nxd6 {[%clk 0:02:25.1]} 36... Kf8 {[%clk 0:02:18.7]} 37. h4 {[%clk 0:02:20.4]}
37... Ke7 {[%clk 0:02:17.9]} 38. Nc8+ {[%clk 0:02:18.5]} 38... Ke6 {[%clk
0:02:18.2]} 39. Kd3 {[%clk 0:02:17.2]} 39... Bf3 {[%clk 0:02:17.3]} 40. g5
{[%clk 0:02:17.5]} 40... Kf5 {[%clk 0:02:16]} 41. Nd6+ {[%clk 0:02:18.1]} 41...
Kg4 {[%clk 0:02:14.6]} 42. Nf7 {[%clk 0:02:18.5]} 42... e4+ {[%clk 0:02:14]} 43.
Kd4 {[%clk 0:02:18.1]} 43... Kxh4 {[%clk 0:02:14.4]} 44. Nd6 {[%clk 0:02:18.6]}
44... Kxg5 {[%clk 0:02:11.8]} 0-1

[Event "*** Titled Tuesday Blitz"]
[Site "Chess.com"]
[Date "2020.05.12"]
[Round "4"]
[White "top_bu_tz"]
[Black "AquivaRubinstein"]
[Result "0-1"]
[WhiteElo "2206"]
[BlackElo "2423"]
[TimeControl "180+1"]
[EndTime "10:35:01 PDT"]
[Termination "AquivaRubinstein won by resignation"]

1. e4 {[%clk 0:03:00.9]} 1... g6 {[%clk 0:02:54.3]} 2. d4 {[%clk 0:03:00.8]}
2... Bg7 {[%clk 0:02:54.6]} 3. Bc4 {[%clk 0:03:00.5]} 3... c6 {[%clk 0:02:52.3]}
4. Nc3 {[%clk 0:02:59.2]} 4... d6 {[%clk 0:02:51.4]} 5. Nf3 {[%clk 0:02:57.8]}
5... Nf6 {[%clk 0:02:51.4]} 6. Qe2 {[%clk 0:02:57.4]} 6... O-O {[%clk
0:02:49.6]} 7. h3 {[%clk 0:02:55.4]} 7... b5 {[%clk 0:02:49.1]} 8. Bb3 {[%clk
0:02:54]} 8... a5 {[%clk 0:02:48.9]} 9. a4 {[%clk 0:02:54]} 9... b4 {[%clk
0:02:48.9]} 10. Nd1 {[%clk 0:02:54.2]} 10... Ba6 {[%clk 0:02:48.6]} 11. Qe3
{[%clk 0:02:50.2]} 11... Nbd7 {[%clk 0:02:41.6]} 12. e5 {[%clk 0:02:45.9]} 12...
dxe5 {[%clk 0:02:35.9]} 13. dxe5 {[%clk 0:02:46.8]} 13... Nd5 {[%clk 0:02:36.3]}
14. Qd4 {[%clk 0:01:53.6]} 14... Qc7 {[%clk 0:02:23]} 15. Bxd5 {[%clk
0:01:43.1]} 15... cxd5 {[%clk 0:02:21.8]} 16. Bf4 {[%clk 0:01:42.2]} 16... Qxc2
{[%clk 0:02:16.4]} 17. Nd2 {[%clk 0:01:29.8]} 17... Nc5 {[%clk 0:02:11.6]} 0-1

[Event "*** Titled Tuesday Blitz"]
[Site "Chess.com"]
[Date "2020.05.12"]
[Round "4"]
[White "Camels1981"]
[Black "Yuri202062"]
[Result "0-1"]
[WhiteElo "2300"]
[BlackElo "2476"]
[TimeControl "180+1"]
[EndTime "10:35:22 PDT"]
[Termination "Yuri202062 won by resignation"]

1. e4 {[%clk 0:03:00.9]} 1... c5 {[%clk 0:02:59.9]} 2. Nf3 {[%clk 0:02:58.6]}
2... e6 {[%clk 0:02:59.9]} 3. d4 {[%clk 0:02:58.8]} 3... cxd4 {[%clk 0:03:00.2]}
4. Nxd4 {[%clk 0:02:58.5]} 4... a6 {[%clk 0:02:59.5]} 5. Nc3 {[%clk 0:02:58.4]}
5... d6 {[%clk 0:02:58.1]} 6. Bc4 {[%clk 0:02:58.7]} 6... b5 {[%clk 0:02:57]} 7.
Bb3 {[%clk 0:02:58.8]} 7... Nf6 {[%clk 0:02:54]} 8. O-O {[%clk 0:02:56]} 8...
Be7 {[%clk 0:02:53.8]} 9. Qf3 {[%clk 0:02:42.5]} 9... Qc7 {[%clk 0:02:46.8]} 10.
Qg3 {[%clk 0:02:42.3]} 10... O-O {[%clk 0:02:44.7]} 11. Bh6 {[%clk 0:02:42.8]}
11... Ne8 {[%clk 0:02:44.1]} 12. Rad1 {[%clk 0:02:43.4]} 12... Bd7 {[%clk
0:02:36.5]} 13. f4 {[%clk 0:02:42.9]} 13... Nc6 {[%clk 0:02:36.2]} 14. Nxc6
{[%clk 0:02:38.4]} 14... Bxc6 {[%clk 0:02:35.8]} 15. f5 {[%clk 0:02:39]} 15...
Kh8 {[%clk 0:02:31.2]} 16. f6 {[%clk 0:02:35.8]} 16... gxh6 {[%clk 0:02:26.1]}
17. fxe7 {[%clk 0:02:35.3]} 17... Qxe7 {[%clk 0:02:26.1]} 18. e5 {[%clk
0:02:34]} 18... Rg8 {[%clk 0:02:06.6]} 19. exd6 {[%clk 0:02:30.6]} 19... Rxg3
{[%clk 0:01:49.2]} 0-1

[Event "*** Titled Tuesday Blitz"]
[Site "Chess.com"]
[Date "2020.05.12"]
[Round "4"]
[White "exoticprincess"]
[Black "Berardino"]
[Result "1-0"]
[WhiteElo "2841"]
[BlackElo "2623"]
[TimeControl "180+1"]
[EndTime "10:35:31 PDT"]
[Termination "exoticprincess won by resignation"]

1. d4 {[%clk 0:03:00.9]} 1... d5 {[%clk 0:02:47.3]} 2. c4 {[%clk 0:02:59.4]}
2... e6 {[%clk 0:02:47.2]} 3. Nc3 {[%clk 0:02:57.5]} 3... Be7 {[%clk 0:02:47.1]}
4. cxd5 {[%clk 0:02:56.8]} 4... exd5 {[%clk 0:02:46.2]} 5. Bf4 {[%clk
0:02:57.7]} 5... Nf6 {[%clk 0:02:46]} 6. e3 {[%clk 0:02:57.7]} 6... O-O {[%clk
0:02:46.3]} 7. Bd3 {[%clk 0:02:57.9]} 7... c5 {[%clk 0:02:46.5]} 8. Nge2 {[%clk
0:02:55.9]} 8... Nc6 {[%clk 0:02:46.4]} 9. O-O {[%clk 0:02:56]} 9... c4 {[%clk
0:02:39.3]} 10. Bc2 {[%clk 0:02:55.2]} 10... a6 {[%clk 0:02:39.8]} 11. a3 {[%clk
0:02:54.6]} 11... Bg4 {[%clk 0:02:36.3]} 12. f3 {[%clk 0:02:53.8]} 12... Bh5
{[%clk 0:02:36.5]} 13. g4 {[%clk 0:02:51]} 13... Bg6 {[%clk 0:02:36.6]} 14. h4
{[%clk 0:02:50.6]} 14... Bxc2 {[%clk 0:02:31.7]} 15. Qxc2 {[%clk 0:02:51.5]}
15... b5 {[%clk 0:02:29.5]} 16. Ng3 {[%clk 0:02:39.3]} 16... b4 {[%clk
0:02:25.9]} 17. Nce2 {[%clk 0:02:39.4]} 17... bxa3 {[%clk 0:02:24.4]} 18. bxa3
{[%clk 0:02:39]} 18... g6 {[%clk 0:02:13.8]} 19. h5 {[%clk 0:02:38.2]} 19... Re8
{[%clk 0:02:07.5]} 20. Kg2 {[%clk 0:02:38]} 20... Bd6 {[%clk 0:02:06.6]} 21.
hxg6 {[%clk 0:02:37.9]} 21... fxg6 {[%clk 0:02:04.9]} 22. Rh1 {[%clk 0:02:37]}
22... Bxf4 {[%clk 0:01:58.1]} 23. exf4 {[%clk 0:02:37.9]} 23... Ra7 {[%clk
0:01:49.6]} 24. Rh6 {[%clk 0:02:37.5]} 24... Rae7 {[%clk 0:01:45.5]} 25. Rah1
{[%clk 0:02:37.4]} 25... Nd7 {[%clk 0:01:34.7]} 26. f5 {[%clk 0:02:34.1]} 26...
Nf8 {[%clk 0:01:30.7]} 27. fxg6 {[%clk 0:02:33.7]} 27... Nxg6 {[%clk 0:01:30.4]}
28. Rxg6+ {[%clk 0:02:32]} 28... hxg6 {[%clk 0:01:30]} 29. Qxg6+ {[%clk
0:02:32.9]} 29... Rg7 {[%clk 0:01:30.3]} 30. Qxc6 {[%clk 0:02:33.5]} 30... Re3
{[%clk 0:01:07.8]} 31. Nf4 {[%clk 0:02:28.6]} 31... Rxa3 {[%clk 0:01:04.2]} 32.
Qe6+ {[%clk 0:02:27.8]} 32... Rf7 {[%clk 0:01:01.5]} 33. Qg6+ {[%clk 0:02:27.9]}
1-0

[Event "*** Titled Tuesday Blitz"]
[Site "Chess.com"]
[Date "2020.05.12"]
[Round "4"]
[White "GMJustin"]
[Black "RATNAKARAN"]
[Result "0-1"]
[WhiteElo "2335"]
[BlackElo "2573"]
[TimeControl "180+1"]
[EndTime "10:35:33 PDT"]
[Termination "RATNAKARAN won on time"]

1. e4 {[%clk 0:03:00.7]} 1... e6 {[%clk 0:02:59.3]} 2. f4 {[%clk 0:02:57.1]}
2... c5 {[%clk 0:02:58.3]} 3. Nf3 {[%clk 0:02:52.8]} 3... Nc6 {[%clk 0:02:57.7]}
4. c3 {[%clk 0:02:45.4]} 4... d5 {[%clk 0:02:57.2]} 5. e5 {[%clk 0:02:44.7]}
5... d4 {[%clk 0:02:57]} 6. Bd3 {[%clk 0:02:30.8]} 6... f5 {[%clk 0:02:51.6]} 7.
exf6 {[%clk 0:01:43.8]} 7... Nxf6 {[%clk 0:02:46.9]} 8. O-O {[%clk 0:01:41.1]}
8... Bd6 {[%clk 0:02:46.5]} 9. g3 {[%clk 0:01:39.1]} 9... O-O {[%clk 0:02:45.9]}
10. Na3 {[%clk 0:01:38.3]} 10... e5 {[%clk 0:02:45.6]} 11. fxe5 {[%clk
0:01:03.2]} 11... Nxe5 {[%clk 0:02:43.8]} 12. Nxe5 {[%clk 0:01:02.9]} 12... Bxe5
{[%clk 0:02:44]} 13. Nc4 {[%clk 0:00:51.2]} 13... Bc7 {[%clk 0:02:43.9]} 14. b4
{[%clk 0:00:23.1]} 14... b5 {[%clk 0:02:37.1]} 0-1

[Event "*** Titled Tuesday Blitz"]
[Site "Chess.com"]
[Date "2020.05.12"]
[Round "4"]
[White "CalinGheorghiu"]
[Black "robertofabregas"]
[Result "1-0"]
[WhiteElo "2311"]
[BlackElo "2092"]
[TimeControl "180+1"]
[EndTime "10:35:36 PDT"]
[Termination "CalinGheorghiu won by resignation"]

1. d4 {[%clk 0:02:59.5]} 1... Nf6 {[%clk 0:02:59]} 2. c4 {[%clk 0:02:58.9]} 2...
e6 {[%clk 0:02:59.4]} 3. Nc3 {[%clk 0:02:58.2]} 3... Bb4 {[%clk 0:02:58.6]} 4.
f3 {[%clk 0:02:58]} 4... b6 {[%clk 0:02:58]} 5. a3 {[%clk 0:02:55.1]} 5... Bxc3+
{[%clk 0:02:57.5]} 6. bxc3 {[%clk 0:02:56]} 6... c5 {[%clk 0:02:55.1]} 7. e4
{[%clk 0:02:48.5]} 7... O-O {[%clk 0:02:34]} 8. Bd3 {[%clk 0:02:19.2]} 8... Ne8
{[%clk 0:02:32.2]} 9. f4 {[%clk 0:02:14.7]} 9... Nc6 {[%clk 0:02:27.6]} 10. Nf3
{[%clk 0:02:13.9]} 10... Ba6 {[%clk 0:02:27.1]} 11. Qe2 {[%clk 0:01:44.3]} 11...
Na5 {[%clk 0:02:22.8]} 12. d5 {[%clk 0:01:34.2]} 12... Nd6 {[%clk 0:02:14.6]}
13. Nd2 {[%clk 0:01:33.3]} 13... f5 {[%clk 0:02:09]} 14. e5 {[%clk 0:01:23.4]}
14... Ne4 {[%clk 0:01:56.3]} 15. Nxe4 {[%clk 0:01:20.6]} 15... fxe4 {[%clk
0:01:54.6]} 16. Qxe4 {[%clk 0:01:20.9]} 16... Qh4+ {[%clk 0:01:50.1]} 17. g3
{[%clk 0:01:20.2]} 17... exd5 {[%clk 0:01:34.4]} 18. Qxd5+ {[%clk 0:01:17.3]}
1-0

[Event "*** Titled Tuesday Blitz"]
[Site "Chess.com"]
[Date "2020.05.12"]
[Round "4"]
[White "cassoulet"]
[Black "THE_PLAYER6"]
[Result "1-0"]
[WhiteElo "2665"]
[BlackElo "2471"]
[TimeControl "180+1"]
[EndTime "10:35:45 PDT"]
[Termination "cassoulet won by resignation"]

1. e4 {[%clk 0:03:00.9]} 1... c5 {[%clk 0:02:57.7]} 2. Nc3 {[%clk 0:03:00.7]}
2... Nc6 {[%clk 0:02:54.5]} 3. g3 {[%clk 0:03:01.6]} 3... g6 {[%clk 0:02:54.3]}
4. Bg2 {[%clk 0:03:02.1]} 4... Bg7 {[%clk 0:02:54.7]} 5. d3 {[%clk 0:03:02.7]}
5... e6 {[%clk 0:02:54.1]} 6. Be3 {[%clk 0:03:03.2]} 6... d6 {[%clk 0:02:54.2]}
7. h4 {[%clk 0:03:02.9]} 7... h5 {[%clk 0:02:27]} 8. Qd2 {[%clk 0:03:00.6]} 8...
Rb8 {[%clk 0:02:21.7]} 9. Nh3 {[%clk 0:02:54.4]} 9... b5 {[%clk 0:02:17.4]} 10.
a3 {[%clk 0:02:51.4]} 10... Nd4 {[%clk 0:02:15.1]} 11. O-O {[%clk 0:02:48.4]}
11... Ne7 {[%clk 0:02:15]} 12. f4 {[%clk 0:02:45.7]} 12... f5 {[%clk 0:02:11.6]}
13. Ng5 {[%clk 0:02:44.5]} 13... O-O {[%clk 0:02:10.8]} 14. Rae1 {[%clk
0:02:43.5]} 14... a5 {[%clk 0:02:08.9]} 15. Nd1 {[%clk 0:02:38.5]} 15... b4
{[%clk 0:02:08.3]} 16. axb4 {[%clk 0:02:38.8]} 16... axb4 {[%clk 0:02:08.3]} 17.
c3 {[%clk 0:02:31]} 17... bxc3 {[%clk 0:02:06.7]} 18. bxc3 {[%clk 0:02:31.9]}
18... Nb3 {[%clk 0:02:07]} 19. Qa2 {[%clk 0:02:29.6]} 19... Bd7 {[%clk
0:01:55.1]} 20. Rf2 {[%clk 0:02:26.6]} 20... Qb6 {[%clk 0:01:51.4]} 21. Rb2
{[%clk 0:02:21.6]} 21... Qb5 {[%clk 0:01:50.2]} 22. Bf2 {[%clk 0:01:42.2]} 22...
Bf6 {[%clk 0:01:40.2]} 23. exf5 {[%clk 0:01:39.5]} 23... exf5 {[%clk 0:01:36.5]}
24. Rxe7 {[%clk 0:01:34.9]} 24... Bxe7 {[%clk 0:01:35.6]} 25. Rxb3 {[%clk
0:01:28.2]} 25... Qxd3 {[%clk 0:01:32.7]} 26. Rxb8+ {[%clk 0:01:24.6]} 1-0

[Event "*** Titled Tuesday Blitz"]
[Site "Chess.com"]
[Date "2020.05.12"]
[Round "4"]
[White "vladimir_petrov"]
[Black "Vamostodorecto"]
[Result "1-0"]
[WhiteElo "2315"]
[BlackElo "2447"]
[TimeControl "180+1"]
[EndTime "10:36:01 PDT"]
[Termination "vladimir_petrov won by checkmate"]

1. e4 {[%clk 0:03:00.9]} 1... e5 {[%clk 0:02:59.6]} 2. Nf3 {[%clk 0:02:58.5]}
2... Nc6 {[%clk 0:03:00.1]} 3. Nc3 {[%clk 0:02:58.3]} 3... Nf6 {[%clk
0:02:59.4]} 4. d4 {[%clk 0:02:58.3]} 4... exd4 {[%clk 0:03:00.3]} 5. Nxd4 {[%clk
0:02:58.8]} 5... Nxe4 {[%clk 0:03:00.5]} 6. Nxc6 {[%clk 0:02:43.2]} 6... Nxc3
{[%clk 0:02:59.4]} 7. Nxd8 {[%clk 0:02:40]} 7... Nxd1 {[%clk 0:02:58.8]} 8. Nxf7
{[%clk 0:02:35.9]} 8... Nxf2 {[%clk 0:02:51.3]} 9. Kxf2 {[%clk 0:02:19.9]} 9...
Kxf7 {[%clk 0:02:50]} 10. Bc4+ {[%clk 0:02:19.8]} 10... Kg6 {[%clk 0:02:42.4]}
11. Rf1 {[%clk 0:01:59.1]} 11... Bc5+ {[%clk 0:02:40]} 12. Kg3 {[%clk
0:01:58.2]} 12... Bd6+ {[%clk 0:02:00.6]} 13. Kh3 {[%clk 0:01:26.3]} 13... Bf4
{[%clk 0:01:47.5]} 14. Bd3+ {[%clk 0:01:16.3]} 14... Kh5 {[%clk 0:01:40.3]} 15.
g4+ {[%clk 0:01:11.4]} 15... Kh6 {[%clk 0:01:40.4]} 16. Bxf4+ {[%clk 0:01:07.1]}
16... g5 {[%clk 0:01:39.9]} 17. Be5 {[%clk 0:01:05.3]} 17... Re8 {[%clk
0:01:38.9]} 18. Rf7 {[%clk 0:00:50.3]} 18... Rg8 {[%clk 0:01:36.3]} 19. Rxh7#
{[%clk 0:00:48.7]} 1-0